Cogmind - Beta 15 @@@ ROGUE MODE // 2025.07.15 @ 20:51:04 Player: StaticNoob Result: Destroyed by Y-45 Defender with Beam Rifle Performance ------------- Evolutions (1) 500 Regions Visited (2) 400 Robots Destroyed (15) 75 Value Destroyed (221) 221 Prototype IDs (0) 0 Alien Tech Used (0) 0 Bonus (0) 0 TOTAL SCORE: 1196 Bonus ------- None Cogmind --------- Core Integrity 0/400 Matter 268/300 Energy 85/100 System Corruption 0% Temperature Cool (9) Movement Core (150) Ox2 Location -9/Materials Parts ------- > --- POWER (1) -------- (None) > --- PROPULSION (3) --- (None) > --- UTILITY (3) ------ Small Storage Unit Targeting Computer > --- WEAPON (2) ------- Autogun > --- INVENTORY (8) ---- Improved Heat Sink Peak State ------------ > --- POWER ------------ Ion Engine > --- PROPULSION ------- Light Treads Light Treads > --- UTILITY ---------- Small Storage Unit Seismic Detector > --- WEAPON ----------- Medium Laser Small Laser > --- INVENTORY -------- Ion Engine EM Pulse Gun [Rating: 7] Favorites ----------- Power Light Ion Engine Engine Light Ion Engine Propulsion Light Treads Treads Light Treads Utility Small Storage Unit Device Seismic Detector Storage Small Storage Unit Processor Targeting Computer Weapon Medium Laser Energy Gun Medium Laser Energy Cannon Light EM Pulse Cannon Ballistic Gun Light Assault Rifle Build | -11 -10 -9 ------- Run | Yrd Mat Mat Slots Evolved 2 | . . 2 Power . | . . . Propulsion 1 | . . 1 Utility 1 | . . 1 Weapon . | . . . Parts Attached 16 | 7 2 7 Power 3 | 1 1 1 Engine 3 | 1 1 1 Core . | . . . Reactor . | . . . Propulsion 2 | 2 . . Treads 2 | 2 . . Leg . | . . . Wheel . | . . . Hover . | . . . Flight . | . . . Utility 5 | 2 . 3 Device 2 | 1 . 1 Storage 2 | 1 . 1 Processor 1 | . . 1 Hackware . | . . . Protection . | . . . Artifact . | . . . Weapon 6 | 2 1 3 Energy Gun 3 | 2 1 . Energy Cannon 1 | . . 1 Ballistic Gun 2 | . . 2 Ballistic Cannon . | . . . Launcher . | . . . Special Weapon . | . . . Impact Weapon . | . . . Slashing Weapon . | . . . Piercing Weapon . | . . . Special Melee Weapon . | . . . Unidentified Prototypes . | . . . Parts Lost 12 | . 8 4 Power 3 | . 2 1 Propulsion 2 | . 2 . Utility 2 | . 1 1 Weapon 5 | . 3 2 Highest Loss Streak 7 | . 7 4 To Critical Strikes . | . . . Average Backups 3 | 1 4 1 Power . | . 1 . Propulsion . | . . . Utility 1 | . 2 1 Weapon . | . . . Tool/Special . | . . . Unused Backups 1 | . . 1 Power . | . . . Propulsion . | . . . Utility 1 | . . 1 Weapon . | . . . Tool/Special . | . . . Average Slot Usage (%) 79 | . 93 26 Engine 10 | . 13 2 Treads 21 | . 26 . Device 10 | . 12 3 Storage 12 | . 14 6 Processor 2 | . . 11 Energy Gun 19 | . 24 . Peak Build Rating 7 | 7 7 6 Average Rating 5 | 4 6 3 On Entrance 2 | . 7 . Naked Turns 8 | . 8 . Heaviest Build 14 | 14 14 11 Greatest Support 40 | 40 40 3 Greatest Overweight (x) 3 | 1 2 3 Average Overweight (x) . | . . . Largest Inventory Capacity 8 | 8 8 8 Average Capacity 7 | 6 7 6 Most Carried 5 | 2 5 3 Average Carried 3 | 1 4 1 Final Capacity 8 | 8 5 8 Final Carried 4 | 2 4 1 Class Distribution -------------------- 100% | Mutant Dominant Class ---------------- Mutant | -10/Materials Mutant | -9/Materials Resources | -11 -10 -9 ----------- Run | Yrd Mat Mat Matter Collected 285 | 121 164 . Remotely . | . . . Salvage Created 453 | 48 220 185 Parts 30 | 6 14 10 Haulers Intercepted . | . . . Recyclers Shooed . | . . . Parts Field Recycled . | . . . Retrieved Matter . | . . . Parts Self-Destructed . | . . . Prevented . | . . . Kills | -11 -10 -9 ------- Run | Yrd Mat Mat Combat Hostiles Destroyed 7 | . 5 2 Melee 1 | . . 1 Guns 5 | . 5 . Cannons 1 | . . 1 Classes Destroyed 6 | 1 4 1 Worker 1 | . 1 . Tunneler 3 | 3 . . Recycler 2 | . . 2 Watcher 2 | . 2 . Swarmer 4 | . 2 2 Grunt 3 | . 3 . Best Kill Streak 4 | 3 4 3 Combat Bots Only 2 | . 2 1 Max Kills in Single Turn 2 | 2 1 1 Gunslinging . | . . . Exploded . | . . . Melee 1 | . . 1 Uniques/NPCs Destroyed . | . . . Combat | -11 -10 -9 -------- Run | Yrd Mat Mat Hostile Shots Fired 199 | . 78 121 Missed 57 | . 20 37 Hits 142 | . 58 84 Projectile 142 | . 58 84 Critical Strikes 4 | . 2 2 Damage Taken 1530 | . 811 719 Core 588 | . 180 408 Absorbed by Shields . | . . . Core Remaining (%) 64 | 100 28 . Volleys Fired 50 | 7 32 11 Largest 2 | 2 2 1 Hottest 90 | 90 90 56 Shots Fired 84 | 14 59 11 Gun 80 | 14 59 7 Cannon 4 | . . 4 Launcher . | . . . Special . | . . . Kinetic 7 | . . 7 Thermal 69 | 14 55 . Explosive . | . . . Electromagnetic 8 | . 4 4 Robot Hit Streak 9 | 2 9 6 Robot Miss Streak 3 | 1 3 2 Penetration Max . | . . . Secondary Targets . | . . . Shots Hit Robots 47 | 8 31 8 Core Hits 22 | 3 14 5 Critical Kills . | . . . Critical Parts Destroyed . | . . . Critical Strikes 2 | 1 1 . Burn 2 | 1 1 . Melee Attacks . | . . . Impact . | . . . Slashing . | . . . Piercing . | . . . Sneak Attacks . | . . . Combat Hostiles . | . . . Follow-up Attacks . | . . . Damage Inflicted 687 | 110 422 155 Guns 574 | 110 416 48 Cannons 84 | . . 84 Explosions . | . . . Melee . | . . . Ramming 29 | . 6 23 Kinetic 48 | . . 48 Thermal 485 | 110 375 . Explosive . | . . . Electromagnetic 125 | . 41 84 Impact . | . . . Slashing . | . . . Piercing . | . . . Highest Corruption . | . . . Average Corruption . | . . . Corruption Purged . | . . . Corruption Blocked . | . . . Overload Shots . | . . . Overflow Damage . | . . . Projectiles . | . . . Explosions . | . . . Melee . | . . . Knockbacks . | . . . Impact . | . . . Kinetic . | . . . Secondary . | . . . Self-Inflicted Damage 10 | . . 10 Shots . | . . . Rammed 12 | . 4 8 Targets Rammed 12 | . 4 8 Kicked . | . . . Crushed . | . . . Highest Temperature 372 | 90 372 . Average Temperature 95 | 38 107 . Received Heat Transfer 456 | . 414 42 Effects 1 | . 1 . Shutdowns 1 | . 1 . Siege Activations . | . . . Martial Activations . | . . . Shielding Activations . | . . . Robots Disrupted . | . . . Combat Hostiles . | . . . Robots Corrupted . | . . . Combat Hostiles . | . . . Parts Fried 1 | . . 1 Impact Corruptions . | . . . Robots Melted . | . . . Combat Hostiles . | . . . Parts Melted 3 | . 3 . Heat Transferred 1412 | 359 1053 . Parts Sabotaged . | . . . Parts Stolen . | . . . Parts Stripped . | . . . Power Chain Reactions . | . . . Alert | -11 -10 -9 ------- Run | Yrd Mat Mat Maximum Alert Level . | . . . Low Security (%) 100 | 100 100 100 Level 1 . | . . . Level 2 . | . . . Level 3 . | . . . Level 4 . | . . . Level 5 . | . . . High Security . | . . . Max Security . | . . . Peak Influence 65 | 10 65 42 Initial . | . . . Average 17 | 1 20 13 Influence Increases 315 | 15 203 97 Destroy 0b10 Robot/C 140 | . 100 40 Destroy 0b10 Robot/NC 40 | 15 15 10 Destroy Leader 24 | . 24 . Successful Hack 36 | . 19 17 Lose Combat Pursuer 75 | . 45 30 Influence Decreases 305 | 15 203 87 Time Decay 255 | 15 183 57 Lost Part 50 | . 20 30 Squads Dispatched 2 | . 1 1 Investigation 1 | . 1 . Extermination . | . . . Reinforcement 1 | . . 1 Assault . | . . . Garrison . | . . . Intercept . | . . . Searches Triggered . | . . . Construction Impeded . | . . . Haulers Reinforced . | . . . Active Scanning Responses . | . . . Cargo Convoy Interrupts . | . . . Stealth | -11 -10 -9 --------- Run | Yrd Mat Mat Distress Signals 2 | . 1 1 Communications Jammed . | . . . Distress Signals . | . . . Times Spotted 29 | . 16 13 Peak Tracking Total 8 | . 4 8 Tactical Retreats 4 | . 2 2 Traps | -11 -10 -9 ------- Run | Yrd Mat Mat Traps Triggered 1 | . 1 . Indirectly . | . . . Trap Hack Attempts . | . . . Triggered . | . . . Disarmed 6 | . 6 . Reprogrammed . | . . . Reused . | . . . Traps Extracted . | . . . Installed . | . . . Triggered . | . . . Machines | -11 -10 -9 ---------- Run | Yrd Mat Mat Machines Disabled . | . . . Max in Single Turn . | . . . Machines Repaired . | . . . Machines Dismantled . | . . . Machines Sabotaged . | . . . Overloaded Fab Kills . | . . . Hacking | -11 -10 -9 --------- Run | Yrd Mat Mat Machines Accessed 8 | . 5 3 Terminals 7 | . 5 2 Fabricators . | . . . Repair Stations . | . . . Recycling Units 1 | . . 1 Scanalyzers . | . . . Garrison Access . | . . . Total Hacks 25 | . 16 9 Successful 12 | . 7 5 Failed 13 | . 9 4 Catastrophic 2 | . 2 . Database Lockouts . | . . . Manual 19 | . 13 6 Terminals 24 | . 16 8 Fabricators . | . . . Repair Stations . | . . . Recycling Units 1 | . . 1 Scanalyzers . | . . . Garrison Access . | . . . Terminal Hacks 6 | . 4 2 Robot Analysis 1 | . 1 . Branch Access Points 2 | . 1 1 Locate Traps 1 | . . 1 Disarm Traps 1 | . 1 . Recall Investigation 1 | . 1 . Fabricator Hacks . | . . . Repair Station Hacks . | . . . Recycling Unit Hacks 1 | . . 1 Retrieve Components 1 | . . 1 Scanalyzer . | . . . Garrison Access Hacks . | . . . Unauthorized Hacks 5 | . 3 2 Terminals 5 | . 3 2 Botnet 5 | . 3 2 Fabricators . | . . . Repair Stations . | . . . Recycling Units . | . . . Scanalyzers . | . . . Garrison Access . | . . . Data Cores Recovered . | . . . Used . | . . . Hacking Detections 7 | . 5 2 Full Trace Events 2 | . 2 . Feedback Events . | . . . Feedback Blocked . | . . . Robot Schematics Acquired . | . . . Robots Built . | . . . Authchips . | . . . Time . | . . . Total Robot Build Rating . | . . . Part Schematics Acquired . | . . . Parts Built . | . . . Authchips . | . . . Time . | . . . Total Part Build Rating . | . . . Parts Repaired . | . . . Time . | . . . Parts Recycled . | . . . Recycled Matter . | . . . Retrieved Matter . | . . . Retrieved Components 1 | . . 1 Parts Scanalyzed . | . . . Part Schematics Acquired . | . . . Parts Damaged . | . . . Bothacking | -11 -10 -9 ------------ Run | Yrd Mat Mat Used RIF Installer . | . . . Robots Hacked . | . . . Non-combat . | . . . Combat . | . . . Robot Hacks Applied . | . . . Relay Couplers Released . | . . . Fabnet Peak Effective % . | . . . Robots Rewired . | . . . Allies Hacked . | . . . Hacks Repelled . | . . . Allies | -11 -10 -9 -------- Run | Yrd Mat Mat Total Allies . | . . . Largest Group . | . . . Highest-Rated Group . | . . . Highest-Rated Ally . | . . . Total Orders . | . . . Ally Attacks . | . . . Total Damage . | . . . Kills . | . . . Allies Corrupted . | . . . Allies Melted . | . . . Intel | -11 -10 -9 ------- Run | Yrd Mat Mat Active Infowar (turns) 490 | 6 484 . Seismic 490 | 6 484 . Robot Analysis Total 1 | . 1 . Derelict Logs Recovered . | . . . Drone Launches . | . . . Drone Recoveries . | . . . Exploration | -11 -10 -9 ------------- Run | Yrd Mat Mat Turns Passed 740 | 84 533 123 Spaces Moved 387 | 34 266 87 Core 115 | 4 24 87 Treads 272 | 30 242 . Legs . | . . . Wheels . | . . . Hover . | . . . Flight . | . . . Fastest Speed 50 | 50 50 50 Average Speed 138 | 151 152 89 Slowest Speed 200 | 160 160 200 Overloaded Moves . | . . . Propulsion Burnouts . | . . . Robots Hopped . | . . . Potential Cave-ins . | . . . Cave-ins Triggered . | . . . Exploration Rate (%) 25 | 3 59 15 Regions Visited 2 Branch Regions . Pre-discovered Areas . | . . . Known Exits Taken . | . . . Unknown Exits Taken 2 | 1 1 . Scrap Searched . | . . . Spaces Dug . | . . . Terrain Destroyed . | . . . Melee . | . . . Projectile . | . . . AOE . | . . . Terrain Rammed . | . . . Walls Destroyed . | . . . Machines Disabled . | . . . Actions | -11 -10 -9 --------- Run | Yrd Mat Mat Total 499 | 49 331 119 Wait 30 | . 24 6 Move 385 | 33 265 87 Hop . | . . . Pick Up 5 | 2 3 . Fast Attach 12 | 7 1 4 Attach 4 | . 1 3 Detach . | . . . Swap . | . . . Drop 1 | . 1 . Fire 50 | 7 32 11 Melee . | . . . Ram 8 | . . 8 Kick . | . . . Crush 4 | . 4 . Escape Stasis . | . . . Rewire . | . . . Trap . | . . . Miscellaneous . | . . . Route ------- -11/Scrapyard -10/Materials (discovered 4 exits: *Mat x3 / *Min) -9/Materials (discovered 1 exit: Min) History --------- Turn | Location | Event 32 | -11/Scrapyard | Discovered new exit (range 14) 85 | -11/Scrapyard | Entered Materials 268 | -10/Materials | Identified exit to Mines 304 | -10/Materials | Build established: Mutant 371 | -10/Materials | Discovered new exit (range 5) 425 | -10/Materials | Discovered new exit (range 9) 491 | -10/Materials | Discovered new exit (range 4) 577 | -10/Materials | Core integrity fell below 50% 618 | -10/Materials | Entered another Materials area 618 | -9/Materials | Evolved 2 slots: Propulsion x1, Utility x1 628 | -9/Materials | Identified exit to Mines 637 | -9/Materials | Lost 7 parts (1p2n1u3w) 710 | -9/Materials | Core integrity fell below 50% 738 | -9/Materials | Core integrity fell below 20% 741 | -9/Materials | Destroyed by Y-45 Defender with Beam Rifle Last Messages --------------- Ion Engine. 00691_ M-13 Machinist repairs S-10 Pest Flight Unit. 00702_ U-05 Engineer works on Matter Filter. 00705_ Slammed into S-10 Pest. 00706_ Ion Engine destroyed. 00709_ Slammed into S-10 Pest. 00709_ Destabilizing: Core damaged (-16). 00713_ T-07 Excavator is excavating. 00714_ Slammed into S-10 Pest. 00716_ Acquired Lgt. Assault Rifle. 00717_ Heat Sink destroyed. 00717_ T-07 Excavator is excavating. 00722_ S-10 Pest destroyed. 00736_ Lgt. Assault Rifle destroyed. 00736_ Slammed into S-10 Pest. 00736_ S-10 Pest destroyed. 00737_ Slammed into S-10 Pest. 00740_ Acquired Autogun. Map ----- +----------------------------------------------------+ | ????????# # #????????????????????????? | | ????????# # #????????????????????????? | | ???###########+# #????????????????????????? | | ???# # #????????????????????????? | | ???# """ # #????????????????????????? | | ???# """ ^+ #????????????????????????? | | ???# """ # #????????????????????????? | | ???# # #????????????????????????? | | ???# "T" # #????????????????????????? | | ???######## #????????????????????????? | | ??????????# *w#????????????????????????? | | ??????????# % #????????????????????????? | | ??????????# w#+####???????????????????? | | ??????????# #???????????????????? | | ??????????### #???????????????????? | | ???########## #???????????????????? | | ???? # #???????????????????? | | ???? # ###?????????????????? | | ?????"""""" # #?????????????????? | | ??# """"""" + #?????????????????? | | ??# """"""""# ** %#?????????????????? | | ??# """"""" ## ** #?????????????????? | | ??# """""" ## #?????????????????? | | ??# ##! m #?????????????????? | | ??###+##+#####%* s! #?????????????????? | | ????# = g @! #?????????????????? | | ????####+##### ssY!! ] ??????????? | | ?????? ??##/### ????????? | | ?????# !!!##=[* # ?????????? | | ?????# !!!## # ### ### ?????????? | | ?????# !!!## #######?????????????????? | | ?????# ## #???????????????????????? | | ?????# ## #???????????????????????? | | ?????######### ""#???????????????????????? | | ?????????????# T"#???????????????????????? | | ?????????????# ""#???????????????????????? | | ?????????????# #???????????????????????? | | ?????????????#####????????????????????????? | | ??????????????????????????????????????????? | | ??????????????????????????????????????????? | | ??????????????????????????????????????????? | | ??????????????????????????????????????????? | | ??????????????????????????????????????????? | | ??????????????????????????????????????????? | | ??????????????????????????????????????????? | | ??????????????????????????????????????????? | | ??????????????????????????????????????????? | | ??????????????????????????????????????????? | | ??????????????????????????????????????????? | | ??????????????????????????????????????????? | +----------------------------------------------------+ Best States ------------- Heat Dissipation 38 Energy Generation 10 Energy Capacity 250 Matter Stores 300 Matter Capacity 300 Sight Range 16 Terrain Scan Density 10 Evasion (%) 50 Targeting Accuracy 5 Recoil Reduction 2 Item Schematics ----------------- None Robot Schematics ------------------ None Fabricated ------------ Nothing Repaired ---------- Nothing Alien Tech Used ----------------- None Achievements -------------- None Challenges ------------ None Game ------ Seed CommParticlePenetrator Manual? 0 Play Time 00:08:44 Cumulative 117.1 hours Start 2025.07.15 @ 20:44:27 End 2025.07.15 @ 20:51:04 Sessions 1 Manual Loads 0 Difficulty Rogue Special Mode None Game No. 116 Rogue 116 Adventurer 0 Explorer 0 Win Type - Total 2 Types 1/0/1/0/0/0/0/0/0/0 Lore% 61 Gallery% 61 Achievement% 55 Wizard Run 0 Options --------- Layout 1 ASCII 0 Keyboard 0 Movement Numpad Keybinds 0 Fullscreen 1 Font 24/Smallcaps Map View 50x35 Zoom Use 0% Tactical HUD 1 Map Filters NONE Filters NONE Steam 1 RUN: 1d73d6c7-9f36-414d-9bb1-24302d20b42a